bitfinex-derivatives/quotes_ETHF0:USTF0_20251001
["timestamp","ask_amount","ask_price","bid_price","bid_amount"]
[1759330143934,1.02919,4321.0,4320.9,0.00180906]
[1759330144533,1.29019,4321.0,4320.9,0.00180906]
[1759330144730,0.261,4321.0,4320.9,0.00180906]
[1759330144934,3.2078,4321.3,4321.0,0.9555]
[1759330145139,0.261,4321.2,4321.1,0.9555]
[1759330145931,0.261,4321.2,4320.9,0.00180906]
[1759330145932,5.261,4321.2,4320.9,0.00180906]
[1759330146136,0.6129,4321.0,4320.9,0.00180906]
[1759330146438,0.261,4321.0,4320.9,0.95730906]
[1759330146639,3.2078,4321.3,4320.9,0.95730906]
[1759330146640,0.261,4321.2,4321.1,0.9555]
[1759330150037,0.6129,4321.0,4320.9,0.00180906]
[1759330150235,1.08664104,4321.0,4320.9,0.00180906]
[1759330150437,0.47367632,4321.0,4320.9,0.95730906]
[1759330150636,0.26,4321.0,4320.9,0.95730906]
[1759330151232,0.41628,4321.1,4321.0,1.3671]
[1759330151442,0.67628,4321.1,4321.0,1.3671]
[1759330151641,0.26,4321.1,4321.0,1.3671]
[1759330152942,3.2078,4321.3,4321.2,1.37177]
[1759330153139,3.88406,4321.3,4321.2,1.37177]
[1759330153340,3.88406,4321.3,4321.2,0.9555]
[1759330154951,3.88406,4321.3,4320.9,0.00180906]
[1759330154952,0.6129,4321.0,4320.9,0.00180906]
[1759330155136,0.8719,4321.0,4320.9,0.00180906]
[1759330155539,0.6129,4321.0,4320.9,0.00180906]
[1759330155735,0.259,4321.0,4320.9,0.95730906]
[1759330155944,0.41628,4321.1,4321.0,1.3671]
[1759330156241,0.67528,4321.1,4321.0,1.3671]
[1759330156437,1.28818,4321.1,4320.9,0.00180906]
[1759330156640,1.28818,4321.1,4320.9,0.95730906]
[1759330156835,0.41637,4320.1,4320.0,0.4116]
[1759330157041,0.67537,4320.1,4320.0,1.3671]
[1759330157938,0.67788478,4320.1,4320.0,1.36909851]
[1759330158339,0.41888478,4320.1,4320.0,1.36909851]
[1759330158539,0.67788478,4320.1,4320.0,1.36909851]
[1759330159945,0.26151478,4320.1,4320.0,1.36909851]
[1759330160133,0.67788478,4320.1,4320.0,1.36909851]
[1759330160539,0.67788478,4320.1,4320.0,0.00199851]
[1759330160744,0.41888478,4320.1,4320.0,1.36909851]
[1759330160939,0.00251478,4320.1,4320.0,1.78547851]
[1759330161245,0.00251478,4320.1,4320.0,9.99327851]
[1759330161545,3.2078,4320.9,4320.6,0.9764]
[1759330162137,3.2078,4320.9,4320.8,0.4163]
[1759330162343,3.20976716,4320.9,4320.8,1.3927]
[1759330162542,3.20976716,4320.9,4320.8,0.9764]
[1759330162846,3.20976716,4320.9,4320.8,1.3927]
[1759330163044,3.20976716,4320.9,4320.8,0.9764]
[1759330163246,3.20976716,4320.9,4320.8,1.3927]
[1759330163842,3.20976716,4320.9,4320.8,0.9764]
[1759330164545,0.41632,4320.6,4320.5,1.424]
[1759330164746,0.259,4320.6,4320.5,1.424]
[1759330165341,0.259,4320.6,4320.5,0.4049]
[1759330165542,0.259,4320.6,4320.5,1.424]
[1759330165750,3.20976716,4320.9,4320.6,0.41632]
[1759330166042,0.259,4320.8,4320.6,0.41632]
[1759330166245,3.20976716,4320.9,4320.8,1.0191]
[1759330166844,3.88506716,4320.9,4320.8,1.0191]
[1759330167147,3.46876716,4320.9,4320.8,1.0191]
[1759330168146,3.20976716,4320.9,4320.8,1.0191]
[1759330168354,3.46876716,4320.9,4320.8,1.0191]
[1759330169151,0.26096716,4320.9,4320.8,1.0191]
[1759330169851,3.46876716,4320.9,4320.8,1.0191]
[1759330170252,3.94581039,4320.9,4320.8,1.0191]
[1759330172556,3.94581039,4320.9,4320.5,0.391]
[1759330172756,3.94581039,4320.9,4320.6,1.0191]
[1759330172757,0.41632,4320.7,4320.6,1.0191]
[1759330172958,1.15236323,4320.7,4320.6,1.43542]
[1759330173163,0.47704323,4320.7,4320.6,1.43542]
[1759330173449,3.20976716,4320.9,4320.8,1.43541]
[1759330173654,4.36273017,4320.9,4320.8,1.0191]
[1759330174452,3.94643017,4320.9,4320.8,1.43541]
[1759330175057,3.68743017,4320.9,4320.8,1.43541]
[1759330175259,3.20976716,4320.9,4320.8,1.43541]
[1759330176267,3.20976716,4320.9,4320.8,1.0191]
[1759330176459,4.10372256,4320.9,4320.8,1.0191]
[1759330176653,4.68742256,4320.9,4320.7,0.41631]
[1759330176855,0.41632,4320.7,4320.6,1.0191]
[1759330177059,0.89399182,4320.7,4320.6,1.0191]
[1759330180564,0.41634,4320.5,4320.4,1.0191]
[1759330180762,0.67534,4320.5,4320.4,1.0191]
[1759330180962,1.15301182,4320.5,4320.4,1.0191]
[1759330181366,0.73667182,4320.5,4320.4,1.0191]
[1759330181663,0.73667182,4320.5,4320.4,1.43544]
[1759330182269,1.15300182,4320.5,4320.4,1.0191]
[1759330182966,1.15300182,4320.5,4320.4,1.43544]
[1759330183872,2.40890182,4320.5,4320.4,1.0191]
[1759330184059,2.40890182,4320.5,4320.4,1.43544]
[1759330184264,0.47767182,4320.5,4320.4,2.73724]
[1759330184471,3.20976716,4320.9,4320.8,1.43541]
[1759330184673,3.68748345,4320.9,4320.8,1.43541]
[1759330185066,3.94648345,4320.9,4320.8,1.43541]
[1759330185569,3.68748345,4320.9,4320.8,1.43541]
[1759330187274,3.68748345,4320.9,4320.8,1.4354]
[1759330187573,3.68748345,4320.9,4320.8,1.0191]
[1759330188162,3.94648345,4320.9,4320.8,1.0191]
[1759330188380,3.94648345,4320.9,4320.8,1.4354]
[1759330188673,3.94648345,4320.9,4320.8,1.0191]
[1759330188874,3.94648345,4320.9,4320.6,1.0191]
[1759330189063,1.06141629,4320.8,4320.5,0.391]
[1759330189265,0.41632,4320.6,4320.5,0.391]
[1759330189468,0.89420505,4320.6,4320.5,0.391]
[1759330189882,0.89420505,4320.6,4320.5,1.4101]
[1759330190173,1.47790505,4320.6,4320.5,1.0191]
[1759330190374,1.06158505,4320.6,4320.3,0.41635]
[1759330190573,0.47788505,4320.5,4320.4,1.43544]
[1759330190773,0.47795923,4320.7,4320.6,0.41633]
[1759330190969,0.47795923,4320.7,4320.5,0.391]
[1759330190970,0.41633,4320.6,4320.5,0.391]
[1759330191172,0.47795923,4320.6,4320.5,0.80733]
[1759330191370,0.47795923,4320.6,4320.5,1.82643]
[1759330191573,0.89428923,4320.6,4320.5,1.4101]
[1759330191773,0.41633,4320.6,4320.5,1.4101]
[1759330191972,0.73698946,4320.6,4320.5,1.82643]
[1759330192671,0.47798946,4320.6,4320.5,1.82643]
[1759330192873,0.73698946,4320.6,4320.5,1.82643]
[1759330193471,0.47798946,4320.6,4320.5,1.82643]
[1759330193977,3.46876716,4320.9,4320.8,2.6485]
[1759330194174,3.94673897,4320.9,4320.8,2.2322]
[1759330194370,4.56133897,4320.9,4320.8,2.6485]
[1759330194771,3.94673897,4320.9,4320.8,2.6485]
[1759330195164,4.56133897,4320.9,4320.8,2.6485]
[1759330196079,3.68773897,4320.9,4320.8,2.6485]
[1759330196279,3.94673897,4320.9,4320.8,2.6485]
[1759330196475,4.56133897,4320.9,4320.8,2.6485]
[1759330196682,1.22,4320.7,4320.5,0.41633]
[1759330196873,0.6146,4320.3,4320.2,2.64856]
[1759330197073,1.22,4320.3,4320.2,2.2322]
[1759330197381,1.95699892,4320.3,4320.2,2.64856]
[1759330198676,0.73699892,4320.3,4320.2,2.64856]
[1759330200684,1.35159892,4320.3,4320.2,2.64856]
[1759330201277,0.47799892,4320.3,4320.2,2.64856]
[1759330201470,3.2078,4320.4,4320.3,2.64855]
[1759330201672,3.94278295,4320.4,4320.3,2.2322]
[1759330201870,3.94278295,4320.4,4320.3,2.64855]
[1759330202070,4.55738295,4320.4,4320.3,2.64855]
[1759330202479,5.16278295,4320.4,4320.3,2.64855]
[1759330203077,6.12902295,4320.4,4320.3,0.9519]
[1759330203275,2.18626,4320.2,4320.1,1.36827]
[1759330203471,1.95498295,4320.2,4320.1,2.03567]
[1759330203879,1.95498295,4320.2,4320.1,2.64857]
[1759330204276,0.73543201,4320.2,4320.1,2.64857]
[1759330204575,0.73543201,4320.2,4320.1,2.2322]
[1759330204875,1.95543201,4320.2,4320.0,0.00199851]
[1759330205076,2.66270201,4320.1,4320.0,0.00199851]
[1759330205873,2.24633201,4320.1,4320.0,0.41837851]
[1759330206069,2.24633201,4320.1,4320.0,1.37027851]
[1759330206677,0.73543201,4320.1,4320.0,3.05017851]
[1759330206880,1.95543201,4320.1,4320.0,2.63379851]
[1759330207078,2.50533201,4320.1,4320.0,0.95389851]
[1759330207378,2.50533201,4320.1,4320.0,0.00199851]
[1759330207379,7.92170201,4320.1,4320.0,0.00199851]
[1759330209581,7.24633201,4320.1,4320.0,0.41837851]
[1759330209780,1.69643201,4320.1,4320.0,1.37027851]
[1759330209981,1.35003201,4320.1,4320.0,3.05017851]
[1759330210180,2.37180201,4320.1,4320.0,3.05017851]
[1759330210380,2.92170201,4320.1,4320.0,1.35349851]
[1759330210585,2.92170201,4320.1,4320.0,0.95389851]
[1759330210782,2.92170201,4320.1,4320.0,0.00199851]
[1759330212087,2.11280201,4320.1,4320.0,2.43727851]
[1759330212284,0.47643201,4320.1,4320.0,3.05017851]
[1759330212483,0.41636,4320.3,4320.2,2.64856]
[1759330212676,4.84414,4320.4,4320.3,0.9519]
[1759330212878,1.63637,4320.1,4320.0,2.43727851]
[1759330213073,1.22,4320.1,4320.0,2.43727851]
[1759330213282,3.2078,4320.4,4320.1,0.6674]
[1759330213586,3.2078,4320.4,4320.3,2.64855]
[1759330213778,3.4668,4320.4,4320.3,2.64855]
[1759330213978,4.49774,4320.4,4320.3,2.2322]
[1759330214882,3.88314,4320.4,4320.3,2.2322]
[1759330215086,6.1291423,4320.4,4320.3,0.9519]
[1759330215287,0.41637,4320.1,4320.0,1.35349851]
[1759330215477,3.2078,4320.4,4320.1,0.9519]
[1759330215674,0.259,4320.2,4320.1,0.9519]
[1759330215879,0.67536,4320.2,4320.1,1.36827]
[1759330216183,1.15148013,4320.2,4320.1,0.9519]
[1759330216687,1.85084198,4320.2,4320.1,0.9519]
[1759330217183,0.96627,4320.1,4320.0,0.00199851]
[1759330217482,1.70139013,4320.1,4320.0,0.95389851]
[1759330217780,1.85085198,4320.1,4320.0,0.00199851]
[1759330218787,1.03102,4319.6,4319.5,1.3635]
[1759330218989,3.2078,4319.6,4319.5,3.06023]
[1759330219290,3.88322,4319.6,4319.5,3.06023]
[1759330219491,3.4668,4319.6,4319.5,3.06023]
[1759330219688,3.2078,4319.6,4319.5,3.06314368]
[1759330219990,3.61626185,4319.6,4319.5,3.06314368]
[1759330221094,4.64728185,4319.6,4319.5,2.64671368]
[1759330223187,5.76938185,4319.6,4319.5,0.95481368]
[1759330223485,1.07206,4319.2,4319.1,2.2311]
[1759330223686,1.98486,4319.2,4319.1,2.2311]
[1759330223886,1.98486,4319.2,4318.6,1.20717805]
[1759330223887,2.71382,4318.6,4318.5,0.6015]
[1759330224094,2.97282,4318.6,4318.5,0.6015]
[1759330224290,0.41657,4318.1,4318.0,3.2078]
[1759330224483,2.5563,4318.1,4318.0,0.60403945]
[1759330224885,1.0502,4318.5,4318.4,0.45203815]
[1759330225096,3.36743,4318.5,4318.4,0.45203815]
[1759330225287,0.9879,4318.1,4318.0,0.00253945]
[1759330225493,4.4547,4318.1,4318.0,0.00253945]
[1759330226189,4.4547,4318.1,4318.0,0.91333945]
[1759330226190,3.68369949,4318.1,4318.0,0.91333945]
[1759330226391,0.259,4318.1,4318.0,0.91333945]
[1759330226792,1.2469,4318.1,4318.0,0.00253945]
[1759330227189,4.4547,4318.1,4318.0,0.00253945]
[1759330227596,9.4547,4318.1,4318.0,0.00253945]
[1759330227894,4.4547,4318.1,4318.0,0.00253945]
[1759330228091,4.93055577,4318.1,4318.0,0.00253945]
[1759330228296,4.4537,4318.1,4318.0,0.00253945]
[1759330228793,4.4547,4318.1,4318.0,0.00253945]
[1759330228999,4.93027335,4318.1,4318.0,0.00253945]
[1759330229194,4.4547,4318.1,4318.0,0.00253945]
[1759330229399,9.4547,4318.1,4318.0,0.00253945]
[1759330229701,0.3946,4317.5,4317.3,0.41664]
[1759330229891,1.2459,4317.4,4317.3,0.41664]
[1759330230093,0.9879,4317.4,4317.3,1.32744]
[1759330230398,3.6024,4318.0,4317.9,0.41659]
[1759330230595,4.85049384,4318.0,4317.9,0.41864365]
[1759330230801,1.64269384,4318.0,4317.9,0.41864365]
[1759330231298,1.24809384,4318.0,4317.9,0.41864365]
[1759330231594,3.2078,4318.6,4318.5,0.41653]
[1759330231801,3.2078,4318.6,4318.5,1.32733]
[1759330231996,0.9879,4319.0,4318.9,0.41649]
[1759330232200,0.9879,4319.9,4319.8,0.4164]
[1759330232392,3.2078,4320.5,4319.7,0.9108]
[1759330232597,3.6040966,4320.5,4320.3,0.41635]
[1759330233099,3.2094966,4320.5,4320.4,1.1688]
[1759330233301,0.0016966,4320.5,4320.4,4.3766]
[1759330233497,0.5926,4321.5,4321.2,1.32706]
[1759330233701,0.198,4321.5,4321.3,0.41625]
[1759330233899,0.3946,4322.0,4321.8,0.4162]
[1759330234094,3.2078,4322.2,4322.0,0.41619]
[1759330234298,0.258,4322.1,4322.0,0.41619]
[1759330234497,0.00290666,4322.1,4322.0,1.32878128]
[1759330234700,0.00290666,4322.1,4322.0,0.91259128]
[1759330234999,0.00290666,4322.1,4322.0,0.00179128]
[1759330235000,1.24880666,4322.1,4322.0,0.00179128]
[1759330235600,0.99080666,4322.1,4322.0,0.41798128]
[1759330235798,0.99080666,4322.1,4322.0,0.00179128]
[1759330236401,6.24880666,4322.1,4322.0,0.00179128]
[1759330237301,0.99080666,4322.1,4322.0,0.00179128]
[1759330237496,1.24880666,4322.1,4322.0,0.00179128]
[1759330237697,0.9879,4321.4,4320.9,40.8]
[1759330237900,0.9879,4321.2,4320.9,0.41629]
[1759330238210,0.9879,4321.2,4320.5,0.9108]
[1759330238501,0.3946,4321.5,4320.4,0.41634]
[1759330238502,1.3825,4321.0,4320.4,0.41634]
[1759330238809,0.9879,4320.8,4320.6,0.41632]
[1759330239006,0.9879,4320.8,4320.7,0.41631]
[1759330242006,0.9879,4320.9,4320.4,0.00253763]
[1759330242209,0.3946,4320.5,4320.4,0.00253763]
[1759330242508,1.3825,4320.5,4320.4,0.00253763]
[1759330242904,0.9879,4320.5,4320.4,0.41887763]
[1759330243104,1.3825,4321.0,4320.9,0.4163]
[1759330243303,3.2078,4321.2,4320.8,0.9108]
[1759330243507,3.2078,4321.2,4321.1,0.9108]
[1759330243705,3.2078,4321.7,4321.6,1.32703]
[1759330244920,4.1957,4321.7,4321.6,0.41623]
[1759330245208,0.3946,4321.5,4321.1,0.41627]
[1759330245405,0.9879,4321.4,4320.7,0.9108]
[1759330245602,0.3946,4321.5,4321.2,0.41626]
[1759330245809,3.4658,4321.7,4321.6,0.41623]
[1759330246008,4.4537,4321.7,4321.6,0.41623]
[1759330246207,4.1957,4321.7,4321.6,0.41623]
[1759330246705,0.9879,4321.7,4321.6,0.41623]
[1759330247013,1.3825,4321.5,4321.4,0.41625]
[1759330247608,0.99080666,4322.1,4322.0,0.41619]
[1759330249919,6.66e-06,4322.1,4322.0,6.52969]
[1759330250116,1.3825,4323.0,4322.0,6.52969]
[1759330250117,4.5903,4323.5,4323.4,0.41606]
[1759330250316,0.3946,4324.0,4322.9,0.9108]
[1759330250317,3.6024,4324.0,4323.9,0.41601]
[1759330250814,4.5903,4324.0,4323.9,0.41601]
[1759330251016,4.59276558,4324.0,4323.9,0.41856471]
[1759330251315,4.59276558,4324.0,4323.9,0.00255471]
[1759330253322,0.00246558,4324.0,4323.9,9.12115471]
[1759330253820,0.95036558,4324.0,4323.9,0.26055471]
[1759330254819,0.00246558,4324.0,4323.9,1.18225471]
[1759330255324,5.58e-06,4324.0,4323.9,9.39005471]
[1759330256024,5.58e-06,4324.0,4323.9,4.39005471]
[1759330256318,0.94790558,4324.0,4323.9,0.26055471]
[1759330256917,0.94790558,4324.0,4323.9,0.00255471]
[1759330257117,1.32970558,4324.0,4323.9,0.00255471]
[1759330260122,1.58770558,4324.0,4323.9,0.00255471]
[1759330260923,1.32970558,4324.0,4323.9,0.00255471]
[1759330261224,1.58770558,4324.0,4323.9,0.00255471]
[1759330261424,2.00370558,4324.0,4323.9,0.00255471]
[1759330261823,2.00370558,4324.0,4322.5,1.04034]
[1759330261824,0.3818,4323.0,4322.5,1.04034]
[1759330262025,0.3818,4323.0,4322.2,3.2078]
[1759330262026,3.5896,4323.0,4322.2,3.2078]
[1759330262322,3.5896,4323.0,4322.9,0.4161]
[1759330262323,4.5375,4323.0,4322.9,0.4161]
[1759330262926,4.5375,4323.0,4322.9,0.41831994]
[1759330263120,1.3297,4323.5,4323.4,0.41606]
[1759330263325,0.9479,4323.5,4323.4,4.54556]
[1759330264127,1.32970558,4324.0,4323.9,0.41601]
[1759330264531,5.58e-06,4324.0,4323.9,1.33771]
[1759330264727,5.58e-06,4324.0,4323.9,0.41601]
[1759330266327,5.58e-06,4324.0,4323.9,8.62381]
[1759330267325,5.58e-06,4324.0,4323.9,49.42381]
[1759330267520,5.58e-06,4324.0,4323.9,44.68081]
[1759330267726,5.58e-06,4324.0,4323.9,49.68081]
[1759330268225,3.2078,4325.5,4325.4,0.41586]
[1759330268429,0.9479,4325.4,4325.2,0.41587]
[1759330268724,4.5375,4325.5,4325.4,0.41586]
[1759330269123,4.53990618,4325.5,4325.4,0.41586]
[1759330269830,0.00240618,4325.5,4325.4,1.33756]
[1759330270222,6.18e-06,4325.5,4325.4,1.33756]
[1759330270423,6.18e-06,4325.5,4325.4,9.54536]
[1759330270930,6.18e-06,4325.5,4325.4,45.60236]
[1759330271226,6.18e-06,4325.5,4325.4,50.60236]
[1759330271822,6.18e-06,4325.5,4325.4,45.60236]
[1759330272030,6.18e-06,4325.5,4325.4,50.60236]
[1759330272431,1.32970618,4325.5,4325.4,0.41586]
[1759330273120,0.38180618,4325.5,4325.4,0.41586]
[1759330273428,0.9479,4325.4,4325.3,0.41587]
[1759330273625,6.18e-06,4325.5,4325.3,1.59457]
[1759330273932,6.18e-06,4325.5,4325.4,4.1295]
[1759330274231,6.18e-06,4325.5,4325.4,8.2078]
[1759330274729,6.18e-06,4325.5,4325.4,8.4648]
[1759330275427,6.18e-06,4325.5,4325.4,49.2648]
[1759330275825,1.3297,4327.0,4325.4,49.2648]
[1759330275826,0.9479,4327.0,4326.9,0.41572]
[1759330276027,1.3297,4327.0,4326.9,0.41572]
[1759330276529,0.3818,4327.5,4327.4,0.41567]
[1759330276833,0.9479,4327.4,4327.0,0.41571]
[1759330277130,0.9479,4327.4,4327.0,0.00197467]
[1759330277131,4.1557,4327.1,4327.0,0.00197467]
[1759330277733,9.1557,4327.1,4327.0,0.00197467]
[1759330278529,0.9479,4327.1,4327.0,0.00197467]
[1759330278826,5.9479,4327.1,4327.0,0.00197467]
[1759330279225,0.9479,4327.1,4327.0,0.00197467]
[1759330279934,5.9479,4327.1,4327.0,0.00197467]
[1759330280629,5.9479,4327.1,4325.5,3.2078]
[1759330280630,1.2931,4326.0,4325.9,0.41581]
[1759330281636,1.2931,4326.0,4325.9,0.41816315]
[1759330282138,1.2931,4326.0,4325.9,0.00235315]
[1759330282632,0.9216,4326.0,4325.9,0.00235315]
[1759330282935,0.3715,4326.5,4326.4,0.41577]
[1759330282936,1.2931,4326.5,4326.4,0.41577]
[1759330287742,3.2078,4327.3,4327.2,0.41569]
[1759330289234,0.00219927,4327.5,4327.4,1.35457]
[1759330289635,0.37529927,4327.5,4327.3,0.41568]
[1759330289838,0.8716,4327.4,4327.3,0.41568]
[1759330290735,0.37529927,4327.5,4327.3,0.41568]
[1759330290736,0.00219927,4327.5,4327.3,0.41568]
[1759330291038,0.00219927,4327.5,4327.4,0.9389]
[1759330291638,0.00219927,4327.5,4327.4,5.9389]
[1759330291944,0.00219927,4327.5,4327.4,41.7389]
[1759330292140,0.87379927,4327.5,4327.4,40.8]
[1759330292345,0.87379927,4327.5,4327.4,41.7389]
[1759330292848,0.00219927,4327.5,4327.4,0.9389]
[1759330294334,0.00219927,4327.5,4327.3,41.21568]
[1759330294540,0.8716,4327.4,4327.3,41.47268]
[1759330294742,0.8716,4327.4,4327.3,41.21568]
[1759330295237,0.8716,4327.4,4327.3,0.41568]
[1759330297145,0.8716,4327.4,4326.8,1.03933]
[1759330297347,0.8716,4327.3,4327.2,0.41569]
[1759330298845,0.8716,4327.3,4326.9,1.0393]
[1759330298846,0.8716,4327.3,4326.6,3.4638]
[1759330299047,0.8716,4326.4,4326.3,0.41578]
[1759330299941,4.0794,4326.4,4326.3,0.41578]
[1759330302045,0.3731,4326.0,4325.9,0.41816315]
[1759330302246,3.2078,4326.4,4326.3,0.41578]
[1759330302447,4.0794,4326.4,4326.3,0.41578]
[1759330303246,9.0794,4326.4,4326.3,0.41578]
[1759330303544,4.0794,4326.4,4326.3,0.41578]
[1759330305341,0.3731,4326.0,4325.9,0.00235315]
[1759330305550,1.2447,4326.0,4325.9,0.00235315]
[1759330306648,1.66051,4326.0,4325.9,0.00235315]
[1759330307556,1.66051,4326.0,4325.9,0.41816315]
[1759330308052,1.2447,4326.0,4325.9,0.41816315]
[1759330308257,1.2447,4326.0,4325.9,0.00235315]
[1759330308258,1.66051,4326.0,4325.9,0.00235315]
[1759330308448,0.8716,4325.3,4325.2,0.41587]
[1759330309555,0.8716,4325.3,4325.2,0.41780434]
[1759330309755,0.8716,4325.3,4325.2,0.00193434]
[1759330309953,1.28747,4325.3,4325.2,0.00193434]
[1759330310251,0.3731,4326.0,4325.2,0.00193434]
[1759330310252,0.256,4325.6,4325.2,0.00193434]
[1759330310554,0.3731,4326.0,4325.5,0.9389]
[1759330310555,0.8716,4325.8,4325.5,0.9389]
[1759330310744,0.8716,4325.5,4325.3,0.41587]
[1759330310947,1.28747,4325.3,4325.2,0.00193434]
[1759330312254,0.8716,4325.3,4325.2,0.00193434]
[1759330312556,1.28747,4325.3,4325.2,0.00193434]
[1759330312755,0.8716,4325.3,4325.2,0.41781434]
[1759330313553,0.8716,4325.3,4325.2,0.00193434]
[1759330314056,0.8716,4325.3,4325.2,0.41781434]
[1759330314350,0.8716,4325.3,4325.2,0.00193434]
[1759330314557,0.8716,4325.3,4325.2,0.41781434]
[1759330315557,0.256,4325.7,4325.5,0.41585]
[1759330315855,0.256,4325.7,4325.4,0.41586]
[1759330316054,0.9007,4325.6,4325.5,0.41584]
[1759330316362,2.1012,4325.6,4325.5,0.41584]
[1759330316557,2.1012,4325.6,4325.5,0.99964]
[1759330317958,2.1012,4325.6,4325.5,2.52554]
[1759330318352,1.5122,4325.6,4325.5,2.52554]
[1759330318656,2.1012,4326.0,4325.9,1.175]
[1759330318962,2.4741,4326.0,4325.9,0.41581]
[1759330319652,1.5734,4326.0,4325.7,0.41583]
[1759330319861,2.1012,4325.8,4325.7,0.41583]
[1759330320255,2.1012,4325.8,4325.7,2.52553]
[1759330320756,2.1012,4325.8,4325.7,1.59083]
[1759330320951,2.1012,4325.8,4325.7,0.41583]
[1759330321658,2.1012,4325.8,4325.5,0.41584]
[1759330321659,2.3572,4325.8,4325.5,0.41584]
[1759330321850,2.1012,4325.3,4325.2,0.41781434]
[1759330324255,2.1012,4325.3,4325.2,1.00161434]
[1759330324461,2.1012,4325.3,4325.2,2.52751434]
[1759330324650,0.256,4325.7,4325.5,0.99965]
[1759330324651,1.5122,4325.6,4325.5,0.99965]
[1759330325660,2.1012,4325.6,4325.5,0.41585]
[1759330327157,2.3572,4325.6,4325.5,0.41585]
[1759330329066,5.565,4325.6,4325.5,0.41585]
[1759330329565,5.565,4325.6,4325.3,0.41587]
[1759330329566,1.2005,4325.4,4325.3,0.41587]
[1759330329760,2.3572,4325.4,4325.3,0.41587]
[1759330331161,2.51707,4325.3,4325.2,0.00193434]
[1759330331363,7.51707,4325.3,4325.2,0.00193434]
[1759330331567,7.51707,4325.3,4324.5,1.85913009]
[1759330331568,2.4741,4325.0,4324.9,0.4159]
[1759330331769,5.9379,4325.0,4324.9,0.4159]
[1759330332567,5.9379,4325.0,4324.9,0.41809625]
[1759330333368,5.6819,4325.0,4324.9,0.41809625]
[1759330333567,5.9379,4325.0,4324.9,1.00189625]
[1759330334465,3.5807,4325.5,4325.4,0.41586]
[1759330334665,4.7812,4325.5,4325.4,0.99966]
[1759330335082,5.6819,4325.5,4325.4,0.99966]
[1759330335582,5.6819,4325.5,4325.4,0.41586]
[1759330336076,5.6819,4325.5,4325.4,1.59086]
[1759330336281,5.309,4325.5,4325.4,2.52556]
[1759330336482,3.8193,4325.5,4325.4,2.52556]
[1759330336982,5.309,4325.5,4325.4,2.52556]
[1759330337884,5.6819,4325.5,4325.4,0.99966]
[1759330338283,5.6819,4325.5,4325.4,0.41586]
[1759330338585,5.6819,4325.5,4325.4,0.99966]
[1759330338782,5.6819,4325.5,4325.4,0.41586]
[1759330339383,2.4741,4325.5,4325.4,0.41586]
[1759330340582,2.4741,4325.5,4325.3,0.41587]
[1759330340783,2.51707,4325.3,4325.1,1.23513009]
[1759330340981,3.5807,4325.5,4324.9,0.00219625]
[1759330340982,2.89,4325.0,4324.9,0.00219625]
[1759330341281,6.3528,4325.0,4324.9,0.00219625]
[1759330341684,11.3528,4325.0,4324.9,0.00219625]
[1759330342383,2.8901,4324.0,4323.9,0.81925009]
[1759330342580,2.1012,4323.3,4323.1,0.81925009]
[1759330342781,0.255,4323.2,4322.9,0.81925009]
[1759330342978,0.255,4323.2,4323.0,0.41609]
[1759330343180,0.3729,4323.5,4323.2,0.41607]
[1759330343379,0.255,4323.4,4323.2,0.41774525]
[1759330343686,0.9145,4323.3,4323.2,0.00167525]
[1759330345578,1.1695,4323.3,4323.2,0.00167525]
[1759330346391,2.321,4323.3,4323.2,0.00167525]
[1759330347189,16.681,4323.3,4323.2,0.00167525]
[1759330347484,2.321,4323.3,4323.2,0.00167525]
[1759330348893,2.066,4323.3,4323.2,0.00167525]
[1759330349096,2.321,4323.3,4323.2,0.00167525]
[1759330350986,6.7363,4323.3,4322.0,3.2078]
[1759330351191,2.0318,4322.1,4322.0,0.41619]
[1759330351396,2.2868,4322.1,4322.0,0.41619]
[1759330351792,2.2868,4322.1,4322.0,0.97989]
[1759330351994,2.2868,4322.1,4322.0,0.98227996]
[1759330352596,2.0318,4322.1,4322.0,0.98227996]
[1759330352792,1.465,4322.1,4322.0,2.45457996]
[1759330353403,2.0318,4322.1,4322.0,1.56367996]
[1759330354699,2.0318,4322.1,4322.0,1.14748996]
[1759330354996,2.0318,4322.4,4322.3,0.97986]
[1759330355201,0.5847,4322.5,4322.4,2.45215]
[1759330355401,1.465,4322.5,4322.4,2.45215]
[1759330355707,2.0318,4322.1,4322.0,0.56608996]
[1759330355893,2.0318,4322.1,4322.0,0.98227996]
[1759330356298,0.5847,4322.4,4322.3,0.41616]
[1759330356499,1.465,4322.4,4322.3,1.56126]
[1759330356999,1.465,4322.1,4322.0,2.45457996]
[1759330357696,0.5847,4322.3,4322.2,0.41616]
[1759330358006,0.5847,4322.3,4322.2,2.45216]
[1759330358407,0.5847,4322.5,4322.4,1.56124]
[1759330358601,1.465,4322.5,4322.4,2.45214]
[1759330359403,2.0318,4322.5,4322.4,0.41614]
[1759330359601,2.0318,4322.5,4322.3,1.1451]
[1759330359602,1.465,4322.4,4322.3,1.1451]
[1759330359902,1.465,4322.4,4322.3,2.45216]
[1759330360500,4.0881,4322.9,4322.8,0.41611]
[1759330360704,2.2868,4322.9,4322.8,0.97981]
[1759330361908,2.0318,4322.9,4322.8,0.97981]
[1759330362103,2.2868,4322.9,4322.8,0.97981]
[1759330362409,2.0318,4322.9,4322.8,0.97981]
[1759330362602,2.2868,4322.9,4322.8,0.97981]
[1759330363008,2.2868,4322.9,4322.8,2.45211]
[1759330363311,2.0318,4322.9,4322.8,0.41611]
[1759330363611,2.2868,4322.9,4322.8,0.41611]
[1759330364306,3.4628,4322.9,4322.0,4.43998996]
[1759330364504,3.4628,4322.9,4322.0,4.19007996]
[1759330364505,2.0318,4322.1,4322.0,4.19007996]
[1759330364901,2.0318,4322.1,4322.0,0.00238996]
[1759330365305,2.0318,4322.1,4322.0,0.41857996]
[1759330365804,2.0318,4322.1,4322.0,0.00238996]
[1759330367804,2.2868,4322.1,4322.0,0.00238996]
[1759330369606,2.2868,4322.1,4322.0,2.45457996]
[1759330369809,2.2868,4322.1,4322.0,0.98227996]